fUSD/lending_fUSD_20240319
["ID","MTS","AMOUNT","RATE_DAILY","PERIOD"]
[319612872,1710889863553,-569.70373671,0.00030684,2]
[319612873,1710889863563,-500.0,0.00030684,2]
[319612874,1710889863573,-500.0,0.00030684,2]
[319612875,1710889863583,-397.25290175,0.00030684,2]
[319612876,1710889863593,-500.0,0.00030684,2]
[319612877,1710889863602,-500.0,0.00030684,2]
[319612878,1710889863613,-500.0,0.00030684,2]
[319612879,1710889863622,-500.0,0.00030684,2]
[319612880,1710889863632,-500.0,0.00030684,2]
[319612881,1710889863642,-500.0,0.00030684,2]
[319612882,1710889863652,-500.0,0.00030684,2]
[319612883,1710889863663,-799.5,0.00030684,2]
[319612884,1710889863673,-610.45993688,0.00030684,2]
[319612885,1710889863682,-500.0,0.00030684,2]
[319612886,1710889863691,-500.0,0.00030684,2]
[319612887,1710889863701,-500.0,0.00030684,2]
[319612888,1710889863714,-500.0,0.00030684,2]
[319612889,1710889863724,-500.0,0.00030684,2]
[319612890,1710889863733,-506.51,0.00030684,2]
[319612891,1710889863743,-500.0,0.00030684,2]
[319612892,1710889863753,-500.0,0.00030684,2]
[319612893,1710889863763,-251.02480791,0.00030684,2]
[319612894,1710889863772,-318.05613982,0.00030684,2]
[319612895,1710889863782,-500.0,0.00030684,2]
[319612896,1710889863792,-500.0,0.00030684,2]
[319612897,1710889863802,-500.0,0.00030684,2]
[319612898,1710889863812,-500.0,0.00030684,2]
[319612899,1710889863822,-500.0,0.00030684,2]
[319612900,1710889863834,-446.063691,0.00030684,2]
[319612901,1710889863843,-500.0,0.00030684,2]
[319612902,1710889863853,-500.0,0.00030684,2]
[319612903,1710889863863,-962.3,0.00030684,2]
[319612904,1710889863876,-189.50387143,0.00030684,2]
[319612905,1710889863887,-500.0,0.00030684,2]
[319612906,1710889863896,-500.0,0.00030684,2]
[319612907,1710889863906,-500.0,0.00030684,2]
[319612908,1710889863916,-500.0,0.00030684,2]
[319612909,1710889863925,-500.0,0.00030684,2]
[319612910,1710889863934,-500.0,0.00030684,2]
[319612911,1710889863944,-500.0,0.00030684,2]
[319612912,1710889863956,-207.17,0.00030684,2]
[319612913,1710889863966,-199.63758917,0.00030684,2]
[319612914,1710889863976,-500.0,0.00030684,2]
[319612915,1710889863986,-500.0,0.00030684,2]
[319612916,1710889863995,-500.0,0.00030684,2]
[319612917,1710889864006,-646.07663502,0.00030684,2]
[319612918,1710889864016,-500.0,0.00030684,2]
[319612919,1710889864026,-500.0,0.00030684,2]
[319612920,1710889864035,-500.0,0.00030684,2]
[319612921,1710889864046,-500.0,0.00030684,2]
[319612922,1710889864056,-179.64047048,0.00030684,2]
[319612923,1710889864066,-578.22804292,0.00030684,2]
[319612924,1710889864077,-500.0,0.00030684,2]
[319612925,1710889864087,-500.0,0.00030684,2]
[319612926,1710889864097,-500.0,0.00030684,2]
[319612927,1710889864106,-500.0,0.00030684,2]
[319612928,1710889864116,-738.08,0.00030684,2]
[319612929,1710889864125,-500.0,0.00030684,2]
[319612930,1710889864135,-400.64,0.00030684,2]
[319612931,1710889864145,-500.0,0.00030684,2]
[319612932,1710889864155,-500.0,0.00030684,2]
[319612933,1710889864164,-500.0,0.00030684,2]
[319612934,1710889864174,-320.22805538,0.00030684,2]
[319612935,1710889864184,-500.0,0.00030684,2]
[319612936,1710889864195,-500.0,0.00030684,2]
[319612937,1710889864210,-3065.96,0.00030684,2]
[319612938,1710889864220,-500.0,0.00030684,2]
[319612939,1710889864229,-500.0,0.00030684,2]
[319612940,1710889864238,-500.0,0.00030684,2]
[319612941,1710889864248,-527.83,0.00030684,2]
[319612942,1710889864258,-500.0,0.00030684,2]
[319612943,1710889864268,-1402.94,0.00030684,2]
[319612944,1710889864277,-863.28,0.00030684,2]
[319612945,1710889864287,-500.0,0.00030684,2]
[319612946,1710889864296,-500.0,0.00030684,2]
[319612947,1710889864307,-500.0,0.00030684,2]
[319612948,1710889864316,-509.57,0.00030684,2]
[319612949,1710889864326,-816.49,0.00030684,2]
[319612950,1710889864335,-290.34299144,0.00030684,2]
[319612951,1710889864345,-500.0,0.00030684,2]
[319612952,1710889864355,-500.0,0.00030684,2]
[319612953,1710889864365,-546.0,0.00030684,2]
[319612954,1710889864375,-500.0,0.00030684,2]
[319612955,1710889864385,-1467.71,0.00030684,2]
[319612956,1710889864394,-500.0,0.00030684,2]
[319612957,1710889864404,-500.0,0.00030684,2]
[319612958,1710889864414,-10090.18,0.00030684,2]
[319612959,1710889864423,-500.0,0.00030684,2]
[319612960,1710889864433,-500.0,0.00030684,2]
[319612961,1710889864442,-500.0,0.00030684,2]
[319612962,1710889864455,-541.65524731,0.00030684,2]
[319612963,1710889864465,-500.0,0.00030684,2]
[319612964,1710889864475,-2448.69,0.00030684,2]
[319612965,1710889864484,-500.0,0.00030684,2]
[319612966,1710889864494,-500.0,0.00030684,2]
[319612967,1710889864504,-500.0,0.00030684,2]
[319612968,1710889864513,-1832.0,0.00030684,2]
[319612969,1710889864523,-1702.82,0.00030684,2]
[319612970,1710889864533,-500.0,0.00030684,2]
[319612971,1710889864543,-500.0,0.00030684,2]
[319612972,1710889864553,-500.0,0.00030684,2]
[319612973,1710889864563,-500.0,0.00030684,2]
[319612974,1710889864572,-576.68,0.00030684,2]
[319612975,1710889864582,-550.72,0.00030684,2]
[319612976,1710889864592,-1410.4,0.00030684,2]
[319612977,1710889864602,-500.0,0.00030684,2]
[319612978,1710889864611,-1698.2,0.00030684,2]
[319612979,1710889864621,-566.59,0.00030684,2]
[319612980,1710889864631,-618.74,0.00030684,2]
[319612981,1710889864640,-500.0,0.00030684,2]
[319612982,1710889864650,-500.0,0.00030684,2]
[319612983,1710889864660,-500.0,0.00030684,2]
[319612984,1710889864670,-500.0,0.00030684,2]
[319612985,1710889864680,-500.0,0.00030684,2]
[319612986,1710889864690,-192.30101217,0.00030684,2]
[319612987,1710889864699,-500.0,0.00030684,2]
[319612988,1710889864712,-500.0,0.00030684,2]
[319612989,1710889864722,-500.0,0.00030684,2]
[319612990,1710889864731,-500.0,0.00030684,2]
[319612991,1710889864740,-4353.24,0.00030684,2]
[319612992,1710889864750,-500.0,0.00030684,2]
[319612993,1710889864759,-504.55,0.00030684,2]
[319612994,1710889864769,-500.0,0.00030684,2]
[319612995,1710889864778,-7073.81,0.00030684,2]
[319612996,1710889864787,-500.0,0.00030684,2]
[319612997,1710889864797,-522.69,0.00030684,2]
[319612998,1710889864806,-500.0,0.00030684,2]
[319612999,1710889864816,-500.0,0.00030684,2]
[319613000,1710889864826,-928.93,0.00030684,2]
[319613001,1710889864838,-811.39,0.00030684,2]
[319613002,1710889864847,-1038.54,0.00030684,2]
[319613003,1710889864858,-4631.2,0.00030684,2]
[319613004,1710889864868,-500.0,0.00030684,2]
[319613005,1710889864882,-1456.54,0.00030684,2]
[319613006,1710889864891,-500.0,0.00030684,2]
[319613007,1710889864901,-500.0,0.00030684,2]
[319613008,1710889864911,-500.0,0.00030684,2]
[319613009,1710889864921,-871.05,0.00030684,2]
[319613010,1710889864931,-1056.59,0.00030684,2]
[319613011,1710889864940,-537.22,0.00030684,2]
[319613012,1710889864951,-524.38232156,0.00030684,2]
[319613013,1710889864961,-500.0,0.00030684,2]
[319613014,1710889864973,-500.0,0.00030684,2]
[319613015,1710889864984,-500.0,0.00030684,2]
[319613016,1710889864993,-500.0,0.00030684,2]
[319613017,1710889865003,-500.0,0.00030684,2]
[319613018,1710889865013,-500.0,0.00030684,2]
[319613019,1710889865023,-477.24229631,0.00030684,2]
[319613020,1710889865033,-524.13,0.00030684,2]
[319613021,1710889865042,-2348.88,0.00030684,2]
[319613022,1710889865052,-500.0,0.00030684,2]
[319613023,1710889865062,-515.48,0.00030684,2]
[319613024,1710889865072,-500.0,0.00030684,2]
[319613025,1710889865083,-500.0,0.00030684,2]
[319613026,1710889865093,-500.0,0.00030684,2]
[319613027,1710889865103,-500.0,0.00030684,2]
[319613028,1710889865341,-853.27,0.00030684,2]
[319613029,1710889865351,-1115.49,0.00030684,2]
[319613030,1710889865361,-971.85,0.00030684,2]
[319613031,1710889865371,-543.38,0.00030684,2]
[319613032,1710889865381,-500.0,0.00030684,2]
[319613033,1710889865391,-500.0,0.00030684,2]
[319613034,1710889865401,-2831.03,0.00030684,2]
[319613035,1710889865411,-1184.24,0.00030684,2]
[319613036,1710889865420,-979.33,0.00030684,2]
[319613037,1710889865430,-1727.5,0.00030684,2]
[319613038,1710889865440,-500.0,0.00030684,2]
[319613039,1710889865449,-500.0,0.00030684,2]
[319613040,1710889865461,-500.0,0.00030684,2]
[319613041,1710889865472,-500.0,0.00030684,2]
[319613042,1710889865482,-500.0,0.00030684,2]
[319613043,1710889865492,-522.77,0.00030684,2]
[319613044,1710889865502,-766.46,0.00030684,2]
[319613045,1710889865511,-690.56,0.00030684,2]
[319613046,1710889865521,-500.0,0.00030684,2]
[319613047,1710889865530,-500.0,0.00030684,2]
[319613048,1710889865541,-500.0,0.00030684,2]
[319613049,1710889865551,-346.38,0.00030684,2]
[319613050,1710889865560,-4803.55,0.00030684,2]
[319613051,1710889865571,-817.88,0.00030684,2]
[319613052,1710889865581,-500.0,0.00030684,2]
[319613053,1710889865590,-556.39,0.00030684,2]
[319613054,1710889865600,-4845.95,0.00030684,2]
[319613055,1710889865609,-500.0,0.00030684,2]
[319613056,1710889865619,-500.0,0.00030684,2]
[319613057,1710889865630,-500.0,0.00030684,2]
[319613058,1710889865639,-500.0,0.00030684,2]
[319613059,1710889865649,-500.0,0.00030684,2]
[319613060,1710889865659,-500.0,0.00030684,2]
[319613061,1710889865669,-34103.85,0.00030684,2]
[319613062,1710889865680,-176.05160435,0.00030684,2]
[319613063,1710889865690,-1080.43,0.00030684,2]
[319613064,1710889865699,-1942.23,0.00030684,2]
[319613065,1710889865712,-500.0,0.00030684,2]
[319613066,1710889865722,-3482.12,0.00030684,2]
[319613067,1710889865732,-1812.24,0.00030684,2]
[319613068,1710889865742,-670.6,0.00030684,2]
[319613069,1710889865753,-500.0,0.00030684,2]
[319613070,1710889865762,-500.0,0.00030684,2]
[319613071,1710889865772,-600.36,0.00030684,2]
[319613072,1710889865781,-500.0,0.00030684,2]
[319613073,1710889865791,-500.0,0.00030684,2]
[319613074,1710889865801,-500.0,0.00030684,2]
[319613075,1710889865811,-500.0,0.00030684,2]
[319613076,1710889865820,-500.0,0.00030684,2]
[319613077,1710889865832,-500.0,0.00030684,2]
[319613078,1710889865849,-500.0,0.00030684,2]
[319613079,1710889865859,-862.6,0.00030684,2]
[319613080,1710889865869,-500.0,0.00030684,2]
[319613081,1710889865881,-4330.62,0.00030684,2]
[319613082,1710889865891,-876.81,0.00030684,2]
[319613083,1710889865900,-3516.45,0.00030684,2]
[319613084,1710889865910,-628.68,0.00030684,2]
[319613085,1710889865921,-500.0,0.00030684,2]
[319613086,1710889865932,-536.99096109,0.00030684,2]
[319613087,1710889865941,-728.13,0.00030684,2]
[319613088,1710889865951,-266.72714914,0.00030684,2]
[319613089,1710889865965,-500.0,0.00030684,2]
[319613090,1710889865976,-500.0,0.00030684,2]
[319613091,1710889865987,-898.81,0.00030684,2]
[319613092,1710889865997,-500.0,0.00030684,2]
[319613093,1710889866007,-12216.87,0.00030684,2]
[319613094,1710889866017,-518.77,0.00030684,2]
[319613095,1710889866026,-500.0,0.00030684,2]
[319613096,1710889866036,-500.0,0.00030684,2]
[319613097,1710889866046,-2145.43,0.00030684,2]
[319613098,1710889866056,-500.0,0.00030684,2]
[319613099,1710889866066,-500.0,0.00030684,2]
[319613100,1710889866076,-535.35,0.00030684,2]
[319613101,1710889866086,-500.0,0.00030684,2]
[319613102,1710889866096,-2312.93,0.00030684,2]
[319613103,1710889866105,-246.02713909,0.00030684,2]
[319613104,1710889866115,-500.0,0.00030684,2]
[319613105,1710889866125,-500.0,0.00030684,2]
[319613106,1710889866134,-500.0,0.00030684,2]
[319613107,1710889866144,-555.13,0.00030684,2]
[319613108,1710889866154,-500.0,0.00030684,2]
[319613109,1710889866164,-500.0,0.00030684,2]
[319613110,1710889866174,-500.0,0.00030684,2]
[319613111,1710889866184,-500.0,0.00030684,2]
[319613112,1710889866195,-500.0,0.00030684,2]
[319613113,1710889866207,-500.0,0.00030684,2]
[319613114,1710889866217,-500.0,0.00030684,2]
[319613115,1710889866226,-901.75,0.00030684,2]
[319613116,1710889866236,-500.0,0.00030684,2]
[319613117,1710889866247,-500.0,0.00030684,2]
[319613118,1710889866257,-500.0,0.00030684,2]
[319613119,1710889866267,-2237.89,0.00030684,2]
[319613120,1710889866277,-500.0,0.00030684,2]
[319613121,1710889866287,-299.25671179,0.00030684,2]
[319613122,1710889866298,-500.0,0.00030684,2]
[319613123,1710889866308,-1754.94,0.00030684,2]
[319613124,1710889866318,-500.0,0.00030684,2]
[319613125,1710889866328,-2222.53,0.00030684,2]
[319613126,1710889866337,-500.0,0.00030684,2]
[319613127,1710889866347,-693.88,0.00030684,2]
[319613128,1710889866358,-500.0,0.00030684,2]
[319613129,1710889866369,-500.0,0.00030684,2]
[319613130,1710889866379,-323.65259645,0.00030684,2]
[319613131,1710889866390,-500.0,0.00030684,2]
[319613132,1710889866400,-508.99374672,0.00030684,2]
[319613133,1710889866410,-478.79070364,0.00030684,2]
[319613134,1710889866420,-151.3656308,0.00030747,2]
[319613135,1710889866430,-269.0,0.0003075,2]
[319613136,1710889866440,-300.0,0.0003075,120]
[319613137,1710889866450,-351.678592,0.000308,2]
[319613138,1710889866464,-657.562362,0.000308,2]
[319613139,1710889866474,-2280.63753663,0.00030882,2]
[319613140,1710889866484,-500.0,0.00030958,2]
[319613141,1710889866494,-500.0,0.00030958,2]
[319613142,1710889866504,-500.0,0.00030958,2]
[319613143,1710889866514,-500.0,0.00030958,2]
[319613144,1710889866524,-500.0,0.00030958,2]
[319613145,1710889866534,-500.0,0.00030958,2]
[319613146,1710889866544,-500.0,0.00030958,2]
[319613147,1710889866554,-500.0,0.00030958,2]
[319613148,1710889866564,-500.0,0.00030958,2]
[319613149,1710889866574,-500.0,0.00030958,2]
[319613150,1710889866584,-401.97411736,0.00030958,2]
[319613151,1710889866594,-370.49147428,0.00030958,2]
[319613152,1710889866606,-500.0,0.00030958,2]
[319613153,1710889866616,-462.45882152,0.00030958,2]
[319613154,1710889866626,-417.74731285,0.00030958,2]
[319613155,1710889866636,-500.0,0.00030958,2]
[319613156,1710889866647,-500.0,0.00030958,2]
[319613157,1710889866657,-500.0,0.00030958,2]
[319613158,1710889866668,-808.57,0.00030958,2]
[319613159,1710889866678,-500.0,0.00030958,2]
[319613160,1710889866688,-500.0,0.00030958,2]
[319613161,1710889866698,-500.0,0.00030958,2]
[319613162,1710889866711,-254.50336275,0.00030958,2]
[319613163,1710889866721,-500.0,0.00030958,2]
[319613164,1710889866731,-500.0,0.00030958,2]
[319613165,1710889866741,-357.27635569,0.00030958,2]
[319613166,1710889866750,-500.0,0.00030958,2]
[319613167,1710889866760,-739.62,0.00030958,2]
[319613168,1710889866771,-500.0,0.00030958,2]
[319613169,1710889866781,-500.0,0.00030958,2]
[319613170,1710889866791,-770.01,0.00030958,2]
[319613171,1710889866801,-500.0,0.00030958,2]
[319613172,1710889866811,-706.97,0.00030958,2]
[319613173,1710889866821,-500.0,0.00030958,2]
[319613174,1710889866834,-500.0,0.00030958,2]
[319613175,1710889866844,-500.0,0.00030958,2]
[319613176,1710889866854,-500.0,0.00030958,2]
[319613177,1710889866864,-500.0,0.00030958,2]
[319613178,1710889866875,-1912.51,0.00030958,2]
[319613179,1710889866885,-500.0,0.00030958,2]
[319613180,1710889866894,-500.0,0.00030958,2]
[319613181,1710889866904,-500.0,0.00030958,2]
[319613182,1710889866913,-267.54347586,0.00030958,2]
[319613183,1710889866922,-500.0,0.00030958,2]
[319613184,1710889866931,-470.52697415,0.00030958,2]
[319613185,1710889866941,-281.41301731,0.00030958,2]
[319613186,1710889866952,-500.0,0.00030958,2]
[319613187,1710889866964,-515.13672273,0.00030958,2]
[319613188,1710889866974,-1956.9,0.00030958,2]
[319613189,1710889866983,-500.0,0.00030958,2]
[319613190,1710889866994,-500.0,0.00030958,2]
[319613191,1710889867003,-327.03192172,0.00030958,2]
[319613192,1710889867012,-500.0,0.00030958,2]
[319613193,1710889867022,-500.0,0.00030958,2]
[319613194,1710889867032,-500.0,0.00030958,2]
[319613195,1710889867042,-416.73922415,0.00030958,2]
[319613196,1710889867052,-500.0,0.00030958,2]
[319613197,1710889867061,-500.0,0.00030958,2]
[319613198,1710889867070,-500.0,0.00030958,2]
[319613199,1710889867080,-625.35,0.00030958,2]
[319613200,1710889867089,-500.0,0.00030958,2]
[319613201,1710889867099,-2737.91,0.00030958,2]
[319613202,1710889867109,-500.0,0.00030958,2]
[319613203,1710889867119,-500.0,0.00030958,2]
[319613204,1710889867129,-500.0,0.00030958,2]
[319613205,1710889867138,-500.0,0.00030958,2]
[319613206,1710889867147,-450.07826316,0.00030958,2]
[319613207,1710889867157,-500.0,0.00030958,2]
[319613208,1710889867168,-500.0,0.00030958,2]
[319613209,1710889867180,-500.0,0.00030958,2]
[319613210,1710889867190,-727.13,0.00030958,2]
[319613211,1710889867201,-263.01311234,0.00030958,2]
[319613212,1710889867217,-500.0,0.00030958,2]
[319613213,1710889867227,-500.0,0.00030958,2]
[319613214,1710889867238,-500.0,0.00030958,2]
[319613215,1710889867249,-500.0,0.00030958,2]
[319613216,1710889867260,-343.85016147,0.00030958,2]
[319613217,1710889867271,-236.4,0.00030958,2]
[319613218,1710889867283,-224.27053563,0.00030958,2]
[319613219,1710889867293,-500.0,0.00030958,2]
[319613220,1710889867305,-500.0,0.00030958,2]
[319613221,1710889867316,-500.0,0.00030958,2]
[319613222,1710889867328,-215.31070257,0.00030958,2]
[319613223,1710889867338,-500.0,0.00030958,2]
[319613224,1710889867348,-317.73530354,0.00030958,2]
[319613225,1710889867358,-500.0,0.00030958,2]
[319613226,1710889867369,-500.0,0.00030958,2]
[319613227,1710889867380,-500.0,0.00030958,2]
[319613228,1710889867391,-500.0,0.00030958,2]
[319613229,1710889867401,-500.0,0.00030958,2]
[319613230,1710889867412,-240.43031557,0.00030958,2]
[319613231,1710889867423,-500.0,0.00030958,2]
[319613232,1710889867434,-500.0,0.00030958,2]
[319613233,1710889867444,-500.0,0.00030958,2]
[319613234,1710889867458,-494.00104609,0.00030958,2]
[319613235,1710889867469,-172.18651529,0.00030958,2]
[319613236,1710889867480,-275.49130683,0.00030958,2]
[319613237,1710889867490,-500.0,0.00030958,2]
[319613238,1710889867500,-969.84,0.00030958,2]
[319613239,1710889867510,-341.973218,0.00030958,2]
[319613240,1710889867521,-500.0,0.00030958,2]
[319613241,1710889867531,-500.0,0.00030958,2]
[319613242,1710889867542,-500.0,0.00030958,2]
[319613243,1710889867552,-221.97286315,0.00030958,2]
[319613244,1710889867562,-1547.97,0.00030958,2]
[319613245,1710889867573,-619.47670912,0.00030958,2]
[319613246,1710889867584,-500.0,0.00030958,2]
[319613247,1710889867595,-500.0,0.00030958,2]
[319613248,1710889867605,-500.0,0.00030958,2]
[319613249,1710889867616,-500.0,0.00030958,2]
[319613250,1710889867627,-500.0,0.00030958,2]
[319613251,1710889867637,-500.0,0.00030958,2]
[319613252,1710889867648,-500.0,0.00030958,2]
[319613253,1710889867658,-500.0,0.00030958,2]
[319613254,1710889867669,-500.0,0.00030958,2]
[319613255,1710889867680,-500.0,0.00030958,2]
[319613256,1710889867691,-500.0,0.00030958,2]
[319613257,1710889867702,-248.66756806,0.00030958,2]
[319613258,1710889867715,-500.0,0.00030958,2]
[319613259,1710889867726,-448.85934659,0.00030958,2]
[319613260,1710889867736,-500.0,0.00030958,2]
[319613261,1710889867747,-500.0,0.00030958,2]
[319613262,1710889867757,-500.0,0.00030958,2]
[319613263,1710889867768,-500.0,0.00030958,2]
[319613264,1710889867779,-500.0,0.00030958,2]
[319613265,1710889867850,-500.0,0.00030958,2]
[319613266,1710889867860,-500.0,0.00030958,2]
[319613267,1710889867870,-500.0,0.00030958,2]
[319613268,1710889867882,-355.53293755,0.00030958,2]
[319613269,1710889867892,-611.75379607,0.00030958,2]
[319613270,1710889867901,-500.0,0.00030958,2]
[319613271,1710889867911,-500.0,0.00030958,2]
[319613272,1710889867922,-150.0,0.00030958,2]
[319613273,1710889867931,-771.88,0.00030958,2]
[319613274,1710889867941,-449.52931424,0.00030958,2]
[319613275,1710889867950,-500.0,0.00030958,2]
[319613276,1710889867965,-500.0,0.00030958,2]
[319613277,1710889867974,-500.0,0.00030958,2]
[319613278,1710889867985,-500.0,0.00030958,2]
[319613279,1710889867995,-500.0,0.00030958,2]
[319613280,1710889868005,-500.0,0.00030958,2]
[319613281,1710889868015,-500.0,0.00030958,2]
[319613282,1710889868024,-500.0,0.00030958,2]
[319613283,1710889868034,-500.0,0.00030958,2]
[319613284,1710889868043,-1734.35,0.00030958,2]
[319613285,1710889868053,-583.48318361,0.00030958,2]
[319613286,1710889868062,-500.0,0.00030958,2]
[319613287,1710889868072,-1362.64,0.00030958,2]
[319613288,1710889868082,-500.0,0.00030958,2]
[319613289,1710889868092,-477.37502895,0.00030958,2]
[319613290,1710889868101,-404.94626971,0.00030958,2]
[319613291,1710889868110,-500.0,0.00030958,2]
[319613292,1710889868119,-500.0,0.00030958,2]
[319613293,1710889868129,-234.01986426,0.00030958,2]
[319613294,1710889868138,-500.0,0.00030958,2]
[319613295,1710889868149,-500.0,0.00030958,2]
[319613296,1710889868158,-500.0,0.00030958,2]
[319613297,1710889868168,-500.0,0.00030958,2]
[319613298,1710889868177,-500.0,0.00030958,2]
[319613299,1710889868187,-500.0,0.00030958,2]
[319613300,1710889868197,-799.5,0.00030958,2]
[319613301,1710889868210,-404.76017327,0.00030958,2]
[319613302,1710889868219,-643.52187325,0.00030958,2]
[319613303,1710889868229,-500.0,0.00030958,2]
[319613304,1710889868238,-500.0,0.00030958,2]
[319613305,1710889868247,-500.0,0.00030958,2]
[319613306,1710889868256,-506.51,0.00030958,2]
[319613307,1710889868265,-500.0,0.00030958,2]
[319613308,1710889868274,-636.35443805,0.00030958,2]
[319613309,1710889868283,-500.0,0.00030958,2]
[319613310,1710889868293,-452.59103802,0.00030958,2]
[319613311,1710889868303,-500.0,0.00030958,2]
[319613312,1710889868314,-500.0,0.00030958,2]
[319613313,1710889868323,-500.0,0.00030958,2]
[319613314,1710889868333,-500.0,0.00030958,2]
[319613315,1710889868342,-500.0,0.00030958,2]
[319613316,1710889868352,-962.3,0.00030958,2]
[319613317,1710889868361,-282.93196667,0.00030958,2]
[319613318,1710889868370,-405.05455416,0.00030958,2]
[319613319,1710889868380,-500.0,0.00030958,2]
[319613320,1710889868390,-500.0,0.00030958,2]
[319613321,1710889868399,-500.0,0.00030958,2]
[319613322,1710889868408,-500.0,0.00030958,2]
[319613323,1710889868417,-516.52882838,0.00030958,2]
[319613324,1710889868427,-500.0,0.00030958,2]
[319613325,1710889868436,-500.0,0.00030958,2]
[319613326,1710889868446,-500.0,0.00030958,2]
[319613327,1710889868458,-500.0,0.00030958,2]
[319613328,1710889868468,-500.0,0.00030958,2]
[319613329,1710889868477,-500.0,0.00030958,2]
[319613330,1710889868487,-500.0,0.00030958,2]
[319613331,1710889868497,-212.73704464,0.00030958,2]
[319613332,1710889868506,-500.0,0.00030958,2]
[319613333,1710889868516,-500.0,0.00030958,2]
[319613334,1710889868525,-632.04124309,0.00030958,2]
[319613335,1710889868535,-738.08,0.00030958,2]
[319613336,1710889868544,-500.0,0.00030958,2]
[319613337,1710889868553,-500.0,0.00030958,2]
[319613338,1710889868563,-500.0,0.00030958,2]
[319613339,1710889868572,-500.0,0.00030958,2]
[319613340,1710889868582,-500.0,0.00030958,2]
[319613341,1710889868591,-500.0,0.00030958,2]
[319613342,1710889868600,-3065.96,0.00030958,2]
[319613343,1710889868609,-445.92829211,0.00030958,2]
[319613344,1710889868618,-269.27868958,0.00030958,2]
[319613345,1710889868628,-500.0,0.00030958,2]
[319613346,1710889868637,-527.83,0.00030958,2]
[319613347,1710889868647,-313.46259446,0.00030958,2]
[319613348,1710889868656,-1402.94,0.00030958,2]
[319613349,1710889868665,-863.28,0.00030958,2]
[319613350,1710889868674,-500.0,0.00030958,2]
[319613351,1710889868682,-548.34012951,0.00030958,2]
[319613352,1710889868692,-509.57,0.00030958,2]
[319613353,1710889868701,-500.0,0.00030958,2]
[319613354,1710889868713,-816.49,0.00030958,2]
[319613355,1710889868722,-500.0,0.00030958,2]
[319613356,1710889868731,-500.0,0.00030958,2]
[319613357,1710889868740,-546.0,0.00030958,2]
[319613358,1710889868749,-500.0,0.00030958,2]
[319613359,1710889868758,-1467.71,0.00030958,2]
[319613360,1710889868767,-500.0,0.00030958,2]
[319613361,1710889868776,-500.0,0.00030958,2]
[319613362,1710889868785,-10090.18,0.00030958,2]
[319613363,1710889868794,-500.0,0.00030958,2]
[319613364,1710889868803,-500.0,0.00030958,2]
[319613365,1710889868812,-500.0,0.00030958,2]
[319613366,1710889868822,-500.0,0.00030958,2]
[319613367,1710889868833,-2448.69,0.00030958,2]
[319613368,1710889868842,-500.0,0.00030958,2]
[319613369,1710889868851,-500.0,0.00030958,2]
[319613370,1710889868860,-500.0,0.00030958,2]
[319613371,1710889868869,-1832.0,0.00030958,2]